lending/lending_fUSD_20251111
["ID","MTS","AMOUNT","RATE_DAILY","PERIOD"]
[393603069,1762845032321,-1200.0,0.00027998,2]
[393603070,1762845032332,-630.0,0.00027999,2]
[393603071,1762845032342,-300.0,0.00027999,2]
[393603072,1762845032352,-876.92714407,0.00028,2]
[393603094,1762845040365,-268.95694284,0.00028,2]
[393603117,1762845043670,-881.40911335,0.00028,2]
[393603129,1762845046691,-1277.11459065,0.00028,2]
[393603290,1762845526427,160.93987895,0.00019,7]
[393603307,1762845914798,-269.20924952,0.00018,2]
[393603308,1762845918441,-200.0,0.00018,2]
[393603309,1762845920675,-181.6857788,0.00018,2]
[393603310,1762845926162,-234.19055155,0.00018,2]
[393603311,1762845928295,-393.10992567,0.00018,2]
[393603312,1762845933143,-297.83299363,0.00018,2]
[393603313,1762845934834,-347.42783103,0.00018,2]
[393603314,1762845937064,-159.93849102,0.00018,2]
[393603315,1762845942511,-250.0,0.00018,2]
[393603316,1762845945438,-151.81550258,0.00018,2]
[393603317,1762845951058,-268.02000949,0.00018,2]
[393603318,1762845954444,-500.0,0.00018,2]
[393603319,1762845959131,-273.76431158,0.00018,2]
[393603320,1762845961928,-167.49177185,0.00018,2]
[393603321,1762845966760,-251.82618244,0.00018,2]
[393603322,1762845970393,-161.15,0.00018,2]
[393603323,1762845975078,-166.66,0.00018,2]
[393603324,1762845977186,-240.80516453,0.00018,2]
[393603325,1762845983113,-306.51349109,0.00018,2]
[393603326,1762845985291,-182.94134438,0.00018,2]
[393603328,1762845991999,-234.18154421,0.00018,2]
[393603329,1762845998942,-348.07437606,0.00018,2]
[393603330,1762846000757,-316.55536797,0.00018,2]
[393603331,1762846021756,300.0,0.00017999,2]
[393603332,1762846021851,300.0,0.00017999,2]
[393603333,1762846070180,1207.27569148,0.00015,2]
[393603334,1762846070209,50000.0,0.00015,2]
[393603335,1762846070237,3074508.07773512,0.00015,2]
[393603337,1762846087041,186.59130588,0.000135,2]
[393603339,1762846095894,388.52960645,7.888e-05,2]
[393603341,1762846108104,266.16067638,0.000107,2]
[393603416,1762846238268,-252.0,0.00017999,2]
[393603417,1762846238278,-1914.15755508,0.00018,2]
[393603418,1762846238289,-253.16329769,0.00018,2]
[393603419,1762846240388,-424.30919668,0.00018,2]
[393603420,1762846240404,-509.77,0.00018,2]
[393603421,1762846240886,-1.7e-07,0.00018,2]
[393603422,1762846240898,-512.27802841,0.00018,2]
[393603433,1762846243458,-261.98000005,0.00018,2]
[393603434,1762846243470,-688.7483796,0.00018,2]
[393603435,1762846243698,-4913.14882691,0.00018,2]
[393603436,1762846243779,-3557.40261843,0.00018,2]
[393603437,1762846243791,-2589.35444667,0.00018,2]
[393603445,1762846246839,-16316.27256607,0.00018,2]
[393603459,1762846753439,-548.44700363,0.00017999,2]
[393603461,1762846874573,-397.25377879,0.0001782,2]
[393603464,1762846993419,-209.75691603,0.00017543,2]
[393603465,1762846993446,-90.25116499,0.0001759,2]
[393603466,1762846996302,-273.66125096,0.0001759,2]
[393603467,1762846998631,-344.09377294,0.0001759,2]
[393603468,1762847000735,-580.74202098,0.0001759,2]
[393603512,1762847277444,334.75,0.00013699,2]
[393603520,1762847432462,-1110.9098,0.0001783,2]
[393603521,1762847432472,-15587.67408341,0.00018,2]
[393603523,1762847432482,-178.016759,0.00018,2]
[393603524,1762847432492,-234.246988,0.00018,2]
[393603525,1762847432502,-172.347805,0.00018,2]
[393603526,1762847432511,-636.16087,0.00018,2]
[393603527,1762847432521,-200.0,0.00018,2]
[393603528,1762847432531,-1649.17151479,0.00018108,2]
[393603529,1762847432541,-198.80272007,0.0001812,2]
[393603530,1762847432551,-200.0,0.0001818,2]
[393603531,1762847432561,-636.16088,0.0001823,2]
[393603532,1762847432571,-200.0,0.00018362,2]
[393603533,1762847432581,-200.0,0.00018545,2]
[393603534,1762847432590,-636.16087,0.0001873,2]
[393603535,1762847432600,-200.0,0.00018731,2]
[393603536,1762847432609,-3780.4153457,0.00019167,2]
[393603537,1762847432619,-783.3793111,0.00019167,2]
[393603538,1762847432628,-636.16088,0.0001923,2]
[393603539,1762847432638,-220.14386616,0.00019252,2]
[393603540,1762847432647,-414.84008335,0.00019252,2]
[393603541,1762847432657,-564.5983038,0.00019423,2]
[393603542,1762847432668,-220.4009007,0.00019423,2]
[393603543,1762847432679,-7058.1213803,0.00019423,2]
[393603545,1762847432691,-165.3006754,0.00019423,2]
[393603547,1762847432702,-1926.2829256,0.00019423,2]
[393603549,1762847432713,-636.16088,0.0001973,2]
[393603551,1762847432723,-334.75,0.00020187,2]
[393603553,1762847432732,-636.16087,0.0002023,2]
[393603554,1762847432742,-783.3793111,0.00021563,2]
[393603556,1762847432752,-241.57590383,0.00021588,2]
[393603558,1762847432762,-3780.4153457,0.00021589,2]
[393603560,1762847432772,-151.0,0.00021851,2]
[393603562,1762847432781,-151.0,0.00021851,2]
[393603565,1762847432791,-151.0,0.00021851,2]
[393603567,1762847432807,-151.0,0.00021851,2]
[393603569,1762847432817,-151.0,0.00021851,2]
[393603571,1762847432827,-151.0,0.00021851,2]
[393603573,1762847432837,-263.62259856,0.00021851,2]
[393603575,1762847432846,-151.0,0.00021851,2]
[393603577,1762847432856,-151.0,0.00021851,2]
[393603579,1762847432866,-151.0,0.00021851,2]
[393603582,1762847432877,-151.0,0.00021851,2]
[393603584,1762847432887,-151.0,0.00021851,2]
[393603586,1762847432897,-151.0,0.00021851,2]
[393603588,1762847432907,-151.0,0.00021851,2]
[393603590,1762847432919,-151.0,0.00021851,2]
[393603592,1762847432929,-151.0,0.00021851,2]
[393603594,1762847432939,-151.0,0.00021851,2]
[393603596,1762847432949,-151.0,0.00021851,2]
[393603598,1762847432959,-151.0,0.00021851,2]
[393603600,1762847432970,-151.0,0.00021851,2]
[393603602,1762847432980,-151.0,0.00021851,2]
[393603604,1762847432991,-151.0,0.00021851,2]
[393603606,1762847433001,-151.0,0.00021851,2]
[393603608,1762847433011,-151.0,0.00021851,2]
[393603610,1762847433021,-151.0,0.00021851,2]
[393603612,1762847433031,-151.0,0.00021851,2]
[393603614,1762847433041,-270.0,0.00021863,2]
[393603616,1762847433051,-500.0,0.00021863,2]
[393603618,1762847433061,-500.0,0.00021863,2]
[393603620,1762847433072,-500.0,0.00021863,2]
[393603622,1762847433082,-500.0,0.00021863,2]
[393603624,1762847433092,-500.0,0.00021863,2]
[393603626,1762847433102,-500.0,0.00021863,2]
[393603628,1762847433112,-500.0,0.00021863,2]
[393603630,1762847433122,-500.0,0.00021863,2]
[393603632,1762847433132,-500.0,0.00021863,2]
[393603634,1762847433142,-500.0,0.00021863,2]
[393603636,1762847433153,-500.0,0.00021863,2]
[393603638,1762847433166,-500.0,0.00021863,2]
[393603640,1762847433176,-501.87269086,0.00021863,2]
[393603642,1762847433186,-564.5983038,0.00021864,2]
[393603644,1762847433195,-21656.11,0.00021864,2]
[393603646,1762847433205,-1926.2829256,0.00021924,2]
[393603648,1762847433215,-165.3006754,0.00021926,2]
[393603651,1762847433228,-500.0,0.00021939,2]
[393603653,1762847433238,-7058.1213803,0.00021954,2]
[393603655,1762847433249,-1173.84,0.00022045,2]
[393603657,1762847433259,-1000.0,0.000229,2]
[393603659,1762847433270,-18699.0,0.0002327,2]
[393603661,1762847433279,-500.0,0.0002333,2]
[393603663,1762847433289,-500.0,0.0002333,2]
[393603665,1762847433298,-500.0,0.0002333,2]
[393603667,1762847433310,-178.016759,0.00023427,2]
[393603669,1762847433319,-234.246988,0.00023427,2]
[393603671,1762847433328,-172.347805,0.00023427,2]
[393603673,1762847433338,-500.0,0.0002368,2]
[393603675,1762847433347,-500.0,0.0002368,2]
[393603677,1762847433360,-505.39261707,0.0002368,2]
[393603679,1762847433370,-502.53995618,0.0002368,2]
[393603682,1762847433380,-500.0,0.0002368,2]
[393603684,1762847433390,-1003.70945434,0.00023878,2]
[393603685,1762847433400,-500.0,0.00023885,2]
[393603687,1762847433410,-500.0,0.00023885,2]
[393603689,1762847433422,-783.3793111,0.0002396,2]
[393603691,1762847433431,-3780.4153457,0.00024011,2]
[393603692,1762847433440,-500.0,0.00024086,2]
[393603693,1762847433450,-274.55088361,0.00024105,2]
[393603694,1762847433460,-500.0,0.00024228,2]
[393603695,1762847433470,-7413.63,0.00024271,2]
[393603696,1762847433480,-564.5983038,0.00024305,2]
[393603697,1762847433490,-1926.2829256,0.00024425,2]
[393603698,1762847433500,-165.3006754,0.00024429,2]
[393603699,1762847433510,-1000.0,0.00024433,2]
[393603700,1762847433520,-7058.1213803,0.00024485,2]
[393603701,1762847433529,-226.58,0.00024658,2]
[393603702,1762847433539,-329.81666734,0.00024981,2]
[393603703,1762847433549,-1000.0,0.00025192,2]
[393603704,1762847433558,-150.0,0.00025235,2]
[393603705,1762847433568,-150.0,0.00025235,2]
[393603706,1762847433578,-150.0,0.00025235,2]
[393603707,1762847433587,-500.0,0.00025235,2]
[393603708,1762847433597,-150.0,0.00025235,2]
[393603709,1762847433607,-200.0,0.00025235,2]
[393603710,1762847433616,-150.0,0.00025235,2]
[393603711,1762847433626,-500.0,0.00025235,2]
[393603712,1762847433635,-500.0,0.00025273,2]
[393603713,1762847433644,-500.0,0.00025372,2]
[393603714,1762847433655,-150.0,0.00025372,2]
[393603715,1762847433665,-500.0,0.00025372,2]
[393603716,1762847433674,-835.59,0.00025386,30]
[393603717,1762847433684,-628.38259742,0.00025509,2]
[393603718,1762847433693,-150.0,0.00025509,2]
[393603719,1762847433703,-500.0,0.00025509,2]
[393603720,1762847433944,-207.1,0.00025597,2]
[393603721,1762847433955,-500.0,0.00025617,2]
[393603722,1762847433965,-500.0,0.00025617,2]
[393603723,1762847433975,-500.0,0.00025617,2]
[393603724,1762847433984,-150.0,0.00025617,2]
[393603725,1762847433995,-150.0,0.00025617,2]
[393603726,1762847434005,-151.0272472,0.00025617,2]
[393603727,1762847434014,-150.0,0.00025617,2]
[393603728,1762847434024,-150.21338972,0.00025617,2]
[393603729,1762847434033,-150.0,0.00025617,2]
[393603730,1762847434043,-159.48620506,0.00025617,2]
[393603731,1762847434056,-253.18593022,0.00025617,2]
[393603732,1762847434066,-150.0,0.00025617,2]
[393603733,1762847434076,-150.0,0.00025617,2]
[393603734,1762847434086,-150.0,0.00025617,2]
[393603735,1762847434095,-150.47221411,0.00025617,2]
[393603736,1762847434104,-150.0,0.00025617,2]
[393603737,1762847434114,-150.0,0.00025617,2]
[393603738,1762847434123,-150.0,0.00025617,2]
[393603739,1762847434133,-150.0,0.00025617,2]
[393603740,1762847434142,-151.18066165,0.00025617,2]
[393603741,1762847434152,-150.0,0.00025646,2]
[393603742,1762847434163,-500.0,0.00025646,2]
[393603743,1762847434172,-150.0,0.00025754,2]
[393603744,1762847434182,-150.0,0.00025754,2]
[393603745,1762847434192,-150.0,0.00025754,2]
[393603746,1762847434203,-150.0,0.00025775,2]
[393603747,1762847434213,-150.0,0.00025775,2]
[393603748,1762847434227,-500.0,0.00025775,2]
[393603749,1762847434238,-500.0,0.00025775,2]
[393603750,1762847434249,-150.0,0.00025775,2]
[393603751,1762847434263,-150.0,0.00025775,2]
[393603752,1762847434274,-150.0,0.00025775,2]
[393603753,1762847434283,-150.0,0.00025783,2]
[393603754,1762847434293,-500.0,0.00025783,2]
[393603755,1762847434304,-267.78464449,0.00025891,2]
[393603756,1762847434314,-202.61489532,0.00025891,2]
[393603757,1762847434323,-150.0,0.00025912,2]
[393603758,1762847434334,-500.0,0.00025912,2]
[393603759,1762847434344,-500.0,0.00025912,2]
[393603760,1762847434354,-150.0,0.00025912,2]
[393603761,1762847434363,-150.0,0.00025912,2]
[393603762,1762847434372,-193.65862463,0.0002592,2]
[393603763,1762847434383,-600.53727216,0.0002592,2]
[393603764,1762847434394,-233.23178274,0.00026049,2]
[393603765,1762847434404,-500.0,0.00026049,2]
[393603766,1762847434417,-447.0,0.00026049,2]
[393603767,1762847434429,-200.0,0.00026049,2]
[393603768,1762847434440,-150.0,0.00026049,2]
[393603769,1762847434453,-649.70851277,0.00026165,2]
[393603770,1762847434468,-1000.0,0.00026165,2]
[393603771,1762847434480,-1000.0,0.00026165,2]
[393603772,1762847434491,-377.31,0.00026174,2]
[393603773,1762847434504,-152.0,0.00026174,2]
[393603774,1762847434515,-349.72393622,0.00026186,2]
[393603775,1762847434530,-150.0,0.00026186,2]
[393603776,1762847434542,-150.0,0.00026323,2]
[393603777,1762847434552,-783.3793111,0.00026356,2]
[393603778,1762847434563,-3780.4153457,0.00026433,2]
[393603779,1762847434573,-250.0,0.0002646,2]
[393603780,1762847434583,-1000.0,0.000266,2]
[393603781,1762847434594,-150.0,0.00026605,2]
[393603782,1762847434605,-334.75,0.00026676,2]
[393603783,1762847434616,-1500.0,0.00026713,2]
[393603784,1762847434626,-564.5983038,0.00026746,2]
[393603785,1762847434636,-500.96249559,0.00026817,2]
[393603786,1762847434647,-1926.2829256,0.00026926,2]
[393603787,1762847434657,-165.3006754,0.00026932,2]
[393603788,1762847434670,-7058.1213803,0.00027017,2]
[393603789,1762847434680,-2000.0,0.00027261,2]
[393603790,1762847434690,-250.0,0.00027285,2]
[393603791,1762847434700,-564.55,0.00027397,15]
[393603792,1762847434710,-296.92453983,0.0002757,2]
[393603793,1762847434720,-150.0,0.0002757,2]
[393603794,1762847434729,-500.0,0.0002757,2]
[393603795,1762847434739,-150.0,0.0002757,2]
[393603796,1762847434749,-150.0,0.0002757,2]
[393603797,1762847434759,-150.0,0.0002757,2]
[393603798,1762847434768,-150.0,0.0002757,2]
[393603799,1762847434778,-269.85033133,0.0002757,2]
[393603800,1762847434788,-150.0,0.0002757,2]
[393603801,1762847434798,-150.0,0.0002757,2]
[393603802,1762847434807,-500.0,0.0002757,2]
[393603803,1762847434817,-500.0,0.0002757,2]
[393603804,1762847434828,-151.0,0.00027704,7]
[393603805,1762847434838,-202.19828309,0.00027707,2]
[393603806,1762847434847,-500.0,0.00027707,2]
[393603807,1762847434858,-204.97586592,0.00027707,2]
[393603808,1762847434879,-150.0,0.00027707,2]
[393603809,1762847434889,-153.00042729,0.00027707,2]
[393603810,1762847434899,-500.0,0.00027707,2]
[393603811,1762847434909,-552.12770534,0.00027707,2]
[393603812,1762847434922,-2500.0,0.00027808,2]
[393603813,1762847434932,-500.0,0.00027844,2]
[393603814,1762847434942,-200.0,0.00027844,2]
[393603815,1762847434952,-407.13508711,0.00027844,2]
[393603816,1762847434963,-226.58,0.00027951,2]
[393603817,1762847434973,-200.0,0.00027975,2]
[393603818,1762847434983,-500.0,0.00027981,2]
[393603819,1762847434993,-7767.02505618,0.00028,2]
[393603820,1762847435003,-500.0,0.00028118,2]
[393603821,1762847435013,-500.0,0.00028255,2]
[393603822,1762847435023,-1000.0,0.00028341,2]
[393603823,1762847435033,-2864.23750904,0.00028356,2]
[393603824,1762847435043,-411.10495616,0.00028392,2]
[393603825,1762847435052,-150.0,0.000286,30]
[393603826,1762847435062,-1071.74,0.00028703,14]
[393603827,1762847435072,-212.11396227,0.0002872,2]
[393603828,1762847435082,-4836.08819572,0.0002874,2]
[393603829,1762847435091,-178.016759,0.00028853,2]
[393603830,1762847435101,-234.246988,0.00028853,2]
[393603831,1762847435111,-172.347805,0.00028853,2]
[393603832,1762847435121,-1071.74,0.00028977,14]
[393603833,1762847435131,-87.98610184,0.00029251,14]
[393603834,1762847435313,-983.75389816,0.00029251,14]
[393603835,1762847435322,-1071.74,0.00029525,14]
[393603836,1762847435331,-197.88342011,0.00029642,2]
[393603837,1762847435340,-206.08372508,0.00029683,2]
[393603838,1762847435349,-1071.74,0.00029799,14]
[393603839,1762847435359,-4836.08819564,0.00029943,2]
[393603840,1762847435373,-173.7768792,0.0003,30]
[393603841,1762847435382,-1071.74,0.00030073,14]
[393603842,1762847435392,-178.016759,0.00030127,3]
[393603843,1762847435402,-234.246988,0.00030127,3]
[393603844,1762847435412,-172.347805,0.00030127,3]
[393603845,1762847435422,-1071.74,0.00030347,14]
[393603846,1762847435431,-835.59,0.00030432,30]
[393603847,1762847435441,-5000.0,0.00030523,2]
[393603848,1762847435451,-154.51,0.00030607,2]
[393603849,1762847435460,-1071.76,0.00030621,14]
[393603850,1762847435470,-150.0,0.00030631,2]
[393603851,1762847435480,-279.74238074,0.0003073,2]
[393603852,1762847435490,-179.8312298,0.00031,120]
[393603853,1762847435500,-699.29,0.00031068,2]
[393603854,1762847435510,-602.27,0.00031068,2]
[393603855,1762847435519,-477.64,0.00031068,2]
[393603856,1762847435529,-699.29,0.00031068,2]
[393603857,1762847435539,-699.29,0.00031068,2]
[393603858,1762847435548,-477.64,0.00031068,2]
[393603859,1762847435558,-477.64,0.00031068,2]
[393603860,1762847435567,-699.29,0.00031068,2]
[393603861,1762847435577,-477.64,0.00031068,2]
[393603862,1762847435587,-699.29,0.00031068,2]
[393603863,1762847435597,-477.64,0.00031068,2]
[393603864,1762847435606,-699.29,0.00031068,2]
[393603865,1762847435616,-1398.58,0.00031068,2]
[393603866,1762847435625,-477.64,0.00031068,2]
[393603867,1762847435634,-477.64,0.00031068,2]
[393603868,1762847435643,-629.97315368,0.00031068,2]
[393603869,1762847435655,-69.31684632,0.00031068,2]
[393603870,1762847435667,-699.29,0.00031068,2]
[393603871,1762847435676,-699.29,0.00031068,2]
[393603872,1762847435685,-4060.25733368,0.00031147,2]
[393603873,1762847435696,-775.83086196,0.00031147,2]
[393603874,1762847435706,-226.58,0.00031244,2]
[393603875,1762847435715,-1874.27218131,0.0003143,4]
[393603876,1762847435734,-3200.97755269,0.0003143,4]
[393603877,1762847435744,-1000.0,0.0003149,2]
[393603878,1762847435761,-350.0,0.0003161,7]
[393603879,1762847435773,-150.0,0.0003161,7]
[393603880,1762847435784,-166.67,0.00031666,2]
[393603881,1762847435794,-204.02750616,0.00031683,2]
[393603882,1762847435804,-299.08,0.00031695,2]
[393603883,1762847435814,-157.37,0.00031712,80]
[393603884,1762847435823,-350.0,0.00031747,7]
[393603885,1762847435833,-2077.08,0.00031769,2]
[393603886,1762847435843,-300.0,0.00031771,2]
[393603887,1762847435854,-15431.12,0.00031779,2]
[393603888,1762847435864,-300.0,0.00031791,2]
[393603889,1762847435875,-300.0,0.00031817,2]
[393603890,1762847435884,-3551.95479409,0.00031873,5]
[393603891,1762847438484,-1775.04520591,0.00031873,5]
[393603892,1762847438495,-1428.02,0.00031873,2]
[393603893,1762847438505,-350.0,0.00031884,7]
[393603894,1762847438515,-574.0,0.00031938,2]
[393603895,1762847438525,-3426.0,0.00031938,2]
[393603896,1762847438535,-608.0,0.00031938,2]
[393603897,1762847438545,-1317.0,0.00031938,2]
[393603898,1762847438555,-820.0,0.00031938,2]
[393603899,1762847438565,-1597.0,0.00031938,2]
[393603900,1762847438575,-2143.0,0.00031938,2]
[393603901,1762847438585,-2052.635,0.00031938,2]
[393603902,1762847438595,-433.215,0.00031938,2]
[393603903,1762847438606,-150.0,0.00032001,2]
[393603904,1762847438616,-699.29,0.00032027,2]
[393603905,1762847438627,-699.29,0.00032027,2]
[393603906,1762847438637,-699.29,0.00032027,2]
[393603907,1762847438647,-699.29,0.00032027,2]
[393603908,1762847438658,-699.29,0.00032027,2]
[393603909,1762847438671,-699.29,0.00032027,2]
[393603910,1762847438682,-699.29,0.00032027,2]
[393603911,1762847438693,-619.8,0.00032027,2]
[393603912,1762847438703,-300.0,0.00032143,2]
[393603913,1762847438714,-300.0,0.00032165,2]
[393603914,1762847438724,-1010.0,0.000322,2]
[393603915,1762847438734,-510.9176893,0.00032222,5]
[393603916,1762847438745,-500.0,0.0003225,120]
[393603917,1762847438755,-500.0,0.0003225,120]
[393603918,1762847438765,-500.0,0.0003225,120]
[393603920,1762847438775,-500.0,0.0003225,120]
[393603922,1762847438785,-500.0,0.0003225,120]
[393603923,1762847438795,-106.09910478,0.0003225,120]
[393603924,1762847438807,-393.90089522,0.0003225,120]
[393603925,1762847438817,-500.0,0.0003225,120]
[393603926,1762847438827,-500.0,0.0003225,120]
[393603927,1762847438837,-500.0,0.0003225,120]
[393603928,1762847438846,-500.0,0.0003225,120]
[393603929,1762847438856,-500.0,0.0003225,120]
[393603930,1762847438867,-500.0,0.0003225,120]
[393603931,1762847438877,-500.0,0.0003225,120]
[393603932,1762847438887,-500.0,0.0003225,120]
[393603933,1762847438898,-500.0,0.0003225,120]
[393603934,1762847438908,-500.0,0.0003225,120]
[393603935,1762847438921,-500.0,0.0003225,120]
[393603936,1762847438931,-500.0,0.0003225,120]
[393603937,1762847438940,-500.0,0.0003225,120]
[393603938,1762847438950,-34.61581403,0.0003225,120]
[393603939,1762847438962,-465.38418597,0.0003225,120]
[393603940,1762847438972,-500.0,0.0003225,120]
[393603941,1762847438982,-500.0,0.0003225,120]
[393603942,1762847438992,-500.0,0.0003225,120]
[393603943,1762847439004,-500.0,0.0003225,120]
[393603944,1762847439015,-500.0,0.0003225,120]
[393603945,1762847439025,-500.0,0.0003225,120]
[393603946,1762847439035,-300.0,0.00032279,2]
[393603947,1762847439046,-300.0,0.00032301,2]
[393603948,1762847439057,-151.52,0.00032301,2]
[393603949,1762847439067,-1206.87,0.00032301,2]
[393603950,1762847439078,-151.98,0.00032301,2]
[393603951,1762847439088,-416.14,0.00032301,2]
[393603952,1762847439098,-177.09,0.00032301,2]
[393603953,1762847439109,-549.62,0.00032301,2]
[393603954,1762847439120,-214.3,0.00032301,2]
[393603955,1762847439131,-150.0,0.00032301,2]
[393603956,1762847439140,-169.21,0.00032301,2]
[393603957,1762847439150,-151.81,0.00032301,2]
[393603958,1762847439159,-177.09,0.00032301,2]
[393603959,1762847439170,-150.0,0.00032301,2]
[393603960,1762847439180,-549.62,0.00032301,2]
[393603961,1762847439190,-1206.87,0.00032301,2]
[393603962,1762847439200,-150.0,0.00032301,2]
[393603963,1762847439210,-150.0,0.00032301,2]
[393603964,1762847439224,-169.21,0.00032301,2]
[393603965,1762847439234,-150.0,0.00032301,2]
[393603966,1762847439244,-416.14,0.00032301,2]
[393603967,1762847439255,-150.0,0.00032301,2]
[393603968,1762847439267,-150.0,0.00032301,2]
[393603969,1762847439277,-177.09,0.00032301,2]
[393603970,1762847439287,-1206.87,0.00032301,2]
[393603971,1762847439297,-150.0,0.00032301,2]
[393603972,1762847439308,-169.21,0.00032301,2]
[393603973,1762847439319,-837.49,0.00032301,2]
[393603974,1762847439329,-549.62,0.00032301,2]
[393603975,1762847439339,-150.0,0.00032301,2]
[393603976,1762847439350,-150.0,0.00032301,2]
[393603977,1762847439360,-150.0,0.00032301,2]
[393603978,1762847439370,-549.62,0.00032301,2]
[393603979,1762847439380,-150.0,0.00032301,2]
[393603980,1762847439391,-169.21,0.00032301,2]
[393603981,1762847439402,-177.09,0.00032301,2]
[393603982,1762847439413,-1206.87,0.00032301,2]
[393603983,1762847439424,-416.14,0.00032301,2]
[393603984,1762847439434,-169.21,0.00032301,2]
[393603985,1762847439444,-150.0,0.00032301,2]
[393603986,1762847439454,-150.0,0.00032301,2]
[393603987,1762847439464,-549.62,0.00032301,2]
[393603988,1762847439474,-177.09,0.00032301,2]
[393603989,1762847439484,-401.66,0.00032301,2]
[393603990,1762847439493,-416.14,0.00032301,2]
[393603991,1762847439503,-2413.38,0.00032301,2]
[393603992,1762847439513,-1206.87,0.00032301,2]
[393603993,1762847439522,-177.09,0.00032301,2]
[393603994,1762847439532,-150.0,0.00032301,2]
[393603995,1762847439541,-150.0,0.00032301,2]
[393603996,1762847439551,-169.21,0.00032301,2]
[393603997,1762847439561,-416.14,0.00032301,2]
[393603998,1762847439571,-177.09,0.00032301,2]
[393603999,1762847439580,-150.0,0.00032301,2]
[393604000,1762847439590,-1206.87,0.00032301,2]
[393604001,1762847439599,-416.14,0.00032301,2]
[393604002,1762847439608,-150.0,0.00032301,2]
[393604003,1762847439618,-169.21,0.00032301,2]
[393604004,1762847439627,-150.0,0.00032301,2]
[393604005,1762847439637,-150.0,0.00032301,2]
[393604006,1762847439647,-169.21,0.00032301,2]
[393604007,1762847439656,-416.14,0.00032301,2]
[393604008,1762847439666,-1206.87,0.00032301,2]
[393604009,1762847439676,-177.09,0.00032301,2]
[393604010,1762847439686,-169.21,0.00032301,2]
[393604011,1762847439695,-177.09,0.00032301,2]
[393604012,1762847439705,-1206.87,0.00032301,2]
[393604013,1762847439715,-150.0,0.00032301,2]
[393604014,1762847439725,-416.14,0.00032301,2]
[393604015,1762847439734,-150.0,0.00032301,2]
[393604016,1762847439744,-150.0,0.00032301,2]
[393604017,1762847439753,-177.09,0.00032301,2]
[393604018,1762847439762,-169.21,0.00032301,2]
[393604019,1762847439772,-1206.87,0.00032301,2]
[393604020,1762847439783,-177.09,0.00032301,2]
[393604021,1762847439792,-169.21,0.00032301,2]
[393604022,1762847439801,-13.61836012,0.00032301,2]
[393604023,1762847439815,-838.95857817,0.00032301,2]
[393604024,1762847439826,-354.29306171,0.00032301,2]
[393604025,1762847439836,-150.0,0.00032301,2]
[393604026,1762847439846,-1082.97767079,0.00032329,2]
[393604027,1762847439856,-225.74708232,0.00032342,5]
[393604028,1762847439866,-151.58,0.00032343,2]
[393604029,1762847439875,-4836.08819564,0.0003235,2]
[393604030,1762847439885,-300.0,0.00032354,2]
[393604031,1762847439895,-300.0,0.00032364,2]
[393604032,1762847439905,-300.0,0.00032387,2]
[393604033,1762847439916,-203.13,0.000324,30]
[393604034,1762847439926,-300.0,0.00032403,2]
[393604035,1762847439936,-11083.9954841,0.00032412,3]
[393604036,1762847439945,-168.0,0.00032416,2]
[393604037,1762847439954,-203.86006579,0.00032421,120]